bitfinex-derivatives/quotes_ETHF0:USTF0_20250828
["timestamp","ask_amount","ask_price","bid_price","bid_amount"]
[1756370777401,0.06432632,4604.8,4604.7,6.0219]
[1756370777606,0.06432632,4604.8,4604.7,25.8009]
[1756370778608,0.06432632,4604.8,4604.7,6.0219]
[1756370778806,5.27932632,4604.8,4604.7,25.7999]
[1756370779001,6.28562632,4604.8,4604.7,25.7999]
[1756370779307,6.28562632,4604.8,4604.7,6.0219]
[1756370779704,6.28562632,4604.8,4604.7,25.7999]
[1756370780406,0.45519632,4604.8,4604.7,25.7999]
[1756370781009,0.06432632,4604.8,4604.7,25.7999]
[1756370781507,0.06432632,4604.8,4604.7,26.19078]
[1756370786306,0.57212417,4604.8,4604.7,26.19078]
[1756370786810,0.06432632,4604.8,4604.7,26.19078]
[1756370787209,0.06432632,4604.8,4604.7,25.7999]
[1756370787411,2.35433066,4604.8,4604.7,25.7999]
[1756370787819,4.68443066,4604.8,4604.7,25.7999]
[1756370788118,7.18473066,4604.8,4604.7,25.7979]
[1756370789118,4.46376066,4604.8,4604.7,26.18878]
[1756370789416,0.96343066,4604.8,4604.7,25.7979]
[1756370790114,0.96343066,4604.8,4604.7,6.0219]
[1756370790316,0.96343066,4604.8,4604.7,26.18778]
[1756370790713,0.96343066,4604.8,4604.7,25.7969]
[1756370791016,0.57256066,4604.8,4604.7,25.83469147]
[1756370792719,0.57371486,4604.8,4604.7,25.83469147]
[1756370794222,0.57371486,4604.8,4604.7,25.44381147]
[1756370794417,0.57371486,4604.8,4604.7,5.66881147]
[1756370794626,6.79501486,4604.8,4604.7,5.66881147]
[1756370794820,6.79501486,4604.8,4604.7,25.44281147]
[1756370795427,5.78871486,4604.8,4604.7,25.44281147]
[1756370795724,3.58901486,4604.8,4604.7,25.44281147]
[1756370795914,4.91281486,4604.8,4604.7,25.44281147]
[1756370796623,4.91281486,4604.8,4604.7,25.83369147]
[1756370796830,0.57371486,4604.8,4604.7,25.83369147]
[1756370798629,0.57371486,4604.8,4604.7,25.44281147]
[1756370799020,0.57371486,4604.8,4604.7,6.05969147]
[1756370799226,0.57371486,4604.8,4604.7,25.83269147]
[1756370799626,0.57371486,4604.8,4604.7,30.04986147]
[1756370799923,5.2133,4605.8,4605.7,4.8265]
[1756370800127,6.1454,4605.8,4605.7,24.5995]
[1756370801033,6.1454,4605.8,4605.7,24.24646507]
[1756370801619,6.1454,4605.8,4605.7,4.47346507]
[1756370801931,6.70622,4605.8,4605.2,0.1332]
[1756370802125,2.4891,4605.4,4605.3,9.573]
[1756370802318,6.1454,4605.4,4605.3,18.783]
[1756370802732,6.1454,4605.4,4604.7,3.2078]
[1756370802927,2.4891,4604.9,4604.8,22.6342]
[1756370803125,1.3094,4604.9,4604.8,24.66457]
[1756370803325,2.7258,4605.1,4605.0,3.2085]
[1756370803526,2.7258,4605.1,4605.0,4.5017]
[1756370803924,5.2133,4605.1,4605.0,4.5017]
[1756370804332,6.1454,4605.1,4605.0,4.5017]
[1756370808632,1.5602174,4605.3,4605.0,4.5017]
[1756370808834,4.2860174,4605.3,4605.2,4.5017]
[1756370809227,2.7258,4605.3,4605.2,4.5017]
[1756370809732,5.2133,4605.3,4605.2,4.5017]
[1756370810027,1.3094,4605.3,4605.2,4.89254]
[1756370810231,1.5602174,4605.5,4605.4,3.77582]
[1756370810428,1.5602174,4605.5,4605.4,24.66352]
[1756370810730,6.1454,4605.6,4605.5,4.5017]
[1756370811029,7.7056174,4605.6,4605.5,20.6772]
[1756370811436,7.7056174,4605.6,4605.5,0.9062]
[1756370811733,8.22041267,4605.6,4605.5,20.6772]
[1756370812328,8.22041267,4605.6,4605.5,20.6762]
[1756370812527,8.22041267,4605.6,4605.5,22.7654]
[1756370812727,8.22041267,4605.6,4605.5,0.9062]
[1756370812936,8.22041267,4605.6,4605.5,20.6762]
[1756370813334,6.66019527,4605.6,4605.5,20.8094]
[1756370815234,6.66019527,4605.6,4605.5,21.8618]
[1756370816539,6.66019527,4605.6,4605.5,2.9954]
[1756370816836,6.66019527,4605.6,4605.5,14.615]
[1756370817338,6.66019527,4605.6,4605.5,15.6674]
[1756370817538,6.66019527,4605.6,4605.5,15.8805]
[1756370817738,6.66019527,4605.6,4605.5,17.1737]
[1756370818339,5.72969527,4605.6,4605.5,17.1737]
[1756370818532,3.90639527,4605.6,4605.5,17.1737]
[1756370819338,5.06389527,4605.6,4605.5,23.9244]
[1756370819639,6.66019527,4605.6,4605.5,24.2707]
[1756370819841,6.66019527,4605.6,4605.5,4.5017]
[1756370820038,5.72969527,4605.6,4605.5,18.1637]
[1756370820244,1.3094,4607.5,4606.9,2.1994]
[1756370820534,1.3094,4607.8,4607.7,2.1994]
[1756370820741,5.2149,4607.8,4607.7,12.6632]
[1756370820935,6.1454,4607.8,4607.7,11.37]
[1756370821341,6.1454,4607.8,4607.7,22.7602]
[1756370821835,6.1454,4607.8,4607.7,3.2078]
[1756370822032,6.1454,4607.8,4606.7,31.284]
[1756370822033,6.1454,4607.3,4607.2,4.114]
[1756370822229,1.4164,4607.3,4607.2,20.6732]
[1756370822435,3.2078,4608.5,4607.3,1.2932]
[1756370822735,2.4891,4607.4,4607.3,2.1994]
[1756370822939,6.1454,4607.4,4607.3,2.1994]
[1756370823334,2.5284,4607.8,4607.3,1.2932]
[1756370823547,3.4196,4607.8,4607.7,2.1994]
[1756370824038,5.2149,4607.8,4607.7,2.1994]
[1756370825348,2.7258,4607.8,4607.7,2.1994]
[1756370826338,5.2149,4607.8,4607.7,2.1994]
[1756370826746,6.1454,4607.8,4607.7,0.9062]
[1756370827544,6.1454,4607.8,4607.7,2.1994]
[1756370827947,5.2149,4607.8,4607.7,5.4072]
[1756370828138,5.0187,4608.0,4607.9,0.8688]
[1756370828342,5.9269,4608.0,4607.9,21.9862]
[1756370829047,5.9269,4608.0,4607.9,20.6318]
[1756370830142,5.9269,4608.0,4607.9,21.9862]
[1756370831454,2.4116,4608.4,4607.9,22.09392]
[1756370831654,2.6378,4608.3,4608.2,2.61378]
[1756370832254,5.9269,4608.3,4608.2,2.61378]
[1756370832642,5.9269,4608.3,4608.2,22.37478]
[1756370835554,5.0187,4608.3,4608.2,22.37478]
[1756370837251,5.9269,4608.3,4608.2,22.37478]
[1756370837756,5.9269,4608.3,4607.7,3.2078]
[1756370838055,0.8775,4607.8,4607.7,4.0766]
[1756370838248,5.9269,4607.8,4607.7,4.0766]
[1756370838655,5.9269,4607.8,4607.7,9.7348]
[1756370839456,5.9269,4607.8,4607.7,22.9648]
[1756370840562,5.9269,4607.8,4607.7,19.757]
[1756370840753,6.42255132,4607.8,4607.7,19.757]
[1756370841062,6.42255132,4607.8,4607.5,0.1759]
[1756370841254,2.87655132,4607.7,4607.6,19.757]
[1756370841451,6.42255132,4607.7,4607.6,19.757]
[1756370841650,10.42255132,4607.7,4607.5,0.1759]
[1756370841847,10.42255132,4607.6,4607.5,0.1759]
[1756370842154,6.42255132,4607.6,4607.5,7.6169]
[1756370842354,10.42255132,4607.6,4607.5,0.1759]
[1756370843356,10.42255132,4607.6,4607.3,19.757]
[1756370843658,5.9269,4607.4,4607.3,8.573]
[1756370843860,6.42255132,4607.4,4607.3,8.573]
[1756370844854,6.42255132,4607.4,4606.6,4.5622]
[1756370845057,2.3809,4606.8,4606.7,20.6268]
[1756370845263,5.9269,4606.8,4606.7,21.9812]
[1756370845455,4.63788319,4606.8,4606.7,2.2232]
[1756370845757,4.63788319,4606.8,4606.7,21.9812]
[1756370848969,4.63788319,4606.8,4606.7,22.37191]
[1756370849962,6.42358319,4606.8,4606.7,22.37191]
[1756370850261,0.49668319,4606.8,4606.7,26.37191]
[1756370850465,1.953763,4608.5,4608.4,1.25937]
[1756370850466,9.1347,4608.5,4608.4,1.25937]
[1756370850663,5.9269,4608.5,4608.4,22.37177]
[1756370850862,4.1412,4608.5,4608.4,22.37177]
[1756370851162,5.9269,4608.8,4608.7,1.25934]
[1756370851465,4.1412,4608.8,4608.7,22.37174]
[1756370851664,0.9082,4609.1,4608.7,22.37174]
[1756370851665,2.6378,4609.1,4609.0,1.25931]
[1756370851864,5.9269,4609.5,4609.4,2.61368]
[1756370852066,5.9269,4609.5,4609.4,22.37168]
[1756370853066,4.1412,4609.5,4609.4,22.37168]
[1756370853270,5.9269,4610.1,4610.0,1.25923]
[1756370853474,5.9269,4610.1,4610.0,20.6258]
[1756370856480,6.3809,4610.1,4609.3,3.2078]
[1756370856690,2.3809,4608.9,4608.8,2.2232]
[1756370856979,5.9269,4608.9,4608.8,9.7878]
[1756370857375,5.9269,4608.9,4608.8,20.6228]
[1756370857684,5.9269,4608.9,4608.8,0.8688]
[1756370857983,5.9269,4608.9,4608.8,20.6228]
[1756370858790,5.9269,4608.9,4608.8,21.8861]
[1756370858983,5.9269,4608.9,4608.8,2.1321]
[1756370859178,5.9269,4608.9,4608.8,21.8851]
[1756370862583,3.2078,4609.7,4608.8,21.8851]
[1756370862782,5.63117465,4609.6,4609.5,0.8942]
[1756370862985,0.49427465,4609.6,4609.5,21.9095]
[1756370863283,4.2139,4609.9,4609.5,21.9095]
[1756370863480,2.6985,4609.8,4609.7,0.8942]
[1756370863683,6.0453,4609.8,4609.7,0.8942]
[1756370863886,6.0453,4609.8,4609.7,19.752]
[1756370864283,6.0453,4609.8,4609.7,20.6462]
[1756370864686,6.0453,4609.8,4609.1,3.2078]
[1756370864883,2.4384,4609.3,4609.2,21.0397]
[1756370865082,6.0453,4609.3,4609.2,22.303]
[1756370865281,2.6985,4609.3,4609.2,22.303]
[1756370866380,2.6985,4609.3,4609.2,2.548]
[1756370866583,2.6985,4609.3,4609.2,22.308]
[1756370866977,2.6985,4609.3,4609.2,20.6542]
[1756370866978,6.0453,4609.3,4609.2,20.6542]
[1756370867185,6.0453,4609.2,4609.1,3.2078]
[1756370867486,6.0453,4609.2,4609.1,23.862]
[1756370867785,6.0453,4609.2,4609.1,4.102]
[1756370867980,6.0453,4609.2,4609.1,10.25]
[1756370868184,2.4384,4608.7,4608.6,4.49255]
[1756370868483,6.0453,4608.7,4608.6,22.83255]
[1756370868788,6.0453,4608.7,4608.6,24.09585]
[1756370869889,6.0453,4608.7,4608.6,25.51385]
[1756370870882,6.0453,4608.7,4608.6,5.75585]
[1756370871079,6.0453,4608.7,4608.6,25.51185]
[1756370871582,5.1369,4608.7,4608.6,25.51185]
[1756370871783,0.9084,4609.0,4608.6,25.51185]
[1756370871784,2.6985,4609.0,4608.9,2.54802]
[1756370871988,2.6985,4609.0,4608.9,22.30302]
[1756370872489,2.6985,4609.0,4608.9,22.30602]
[1756370872689,5.1369,4609.0,4608.9,22.30602]
[1756370873185,0.9084,4609.3,4609.1,0.3905]
[1756370873386,6.0453,4609.3,4609.2,20.6522]
[1756370873686,6.0453,4609.3,4609.2,20.6512]
[1756370876197,6.0453,4609.3,4609.2,0.8942]
[1756370876500,6.0453,4609.3,4609.2,12.3652]
[1756370877093,6.54057557,4609.3,4609.2,19.755]
[1756370878692,6.54057557,4609.3,4609.2,20.6492]
[1756370879787,6.54057557,4609.3,4608.7,0.39054]
[1756370879992,2.4384,4608.7,4608.6,4.49255]
[1756370880188,2.4384,4608.7,4608.6,23.853]
[1756370880189,6.54057557,4608.7,4608.6,23.853]
[1756370880696,6.54057557,4608.7,4608.6,4.102]
[1756370880897,6.54057557,4608.7,4608.4,0.1795]
[1756370881198,6.0453,4608.5,4608.4,0.1795]
[1756370881400,6.54057557,4608.5,4608.4,20.8247]
[1756370881591,1.3358,4608.4,4607.6,1.2633]
[1756370881797,6.0453,4607.7,4607.6,0.8942]
[1756370881997,6.54057557,4607.7,4607.6,0.8942]
[1756370882297,6.54057557,4607.7,4607.1,1.2633]
[1756370882298,5.63217557,4607.7,4607.1,1.2633]
[1756370882494,5.1369,4607.3,4607.2,10.9702]
[1756370882696,6.54057557,4607.3,4607.2,10.9702]
[1756370883099,6.54057557,4607.3,4607.2,20.6542]
[1756370883300,6.54057557,4607.3,4607.2,20.6522]
[1756370883508,6.0453,4607.1,4607.0,4.102]
[1756370883697,2.4384,4607.1,4606.5,3.2078]
[1756370884003,6.0453,4606.6,4606.5,0.8942]
[1756370884298,6.5415539,4606.6,4606.5,0.8942]
[1756370884499,6.5415539,4606.6,4606.5,20.6532]
[1756370884698,6.5415539,4606.6,4606.5,0.8942]
[1756370885009,2.4384,4606.4,4606.3,0.1733]
[1756370885193,6.54067165,4606.4,4606.3,0.1733]
[1756370885597,6.54067165,4606.4,4606.3,19.9423]
[1756370885795,6.54067165,4606.4,4606.3,0.1733]
[1756370886002,6.54067165,4606.4,4606.3,19.9433]
[1756370886408,6.54067165,4606.4,4606.3,0.1733]
[1756370886595,6.54067165,4606.4,4606.3,19.9443]
[1756370886992,6.54067165,4606.4,4606.3,0.1733]
[1756370887192,6.0453,4606.4,4606.3,0.1733]
[1756370887702,6.0453,4606.4,4606.3,19.9423]
[1756370887903,6.0453,4606.4,4606.3,19.769]
[1756370888498,6.0453,4606.4,4606.3,20.6632]
[1756370889304,6.0453,4606.4,4606.3,21.9649]
[1756370889712,6.0453,4606.4,4606.3,20.6632]
[1756370890396,0.8442,4606.9,4606.4,1.3001]
[1756370890707,0.8442,4606.9,4606.3,24.88029]
[1756370890708,5.9637,4607.0,4606.9,2.1944]
[1756370890904,0.9359,4607.3,4606.9,21.9954]
[1756370891104,5.0278,4607.3,4607.2,2.1944]
[1756370891295,5.0278,4607.3,4607.2,21.9984]
[1756370891500,5.9637,4607.3,4607.2,2.1944]
[1756370891794,5.9637,4607.3,4607.2,20.7023]
[1756370892198,5.9637,4607.3,4607.2,0.8943]
[1756370892399,5.9637,4607.3,4607.2,11.7503]
[1756370892600,5.9637,4607.3,4607.2,0.8943]
[1756370892798,5.9637,4607.3,4607.2,20.7013]
[1756370893007,5.9637,4607.3,4607.2,20.6993]
[1756370894605,5.9637,4607.3,4607.2,0.8943]
[1756370894811,4.4304,4607.3,4607.2,20.6983]
[1756370895005,5.9637,4607.3,4607.2,20.6983]
[1756370895508,5.9637,4607.3,4607.2,21.9984]
[1756370895704,4.1002,4607.3,4607.2,21.9984]
[1756370896011,5.9637,4607.3,4607.2,20.6983]
[1756370896905,2.3692,4607.1,4607.0,1.0691]
[1756370897110,5.9637,4607.1,4607.0,20.8671]
[1756370897508,5.9637,4607.1,4607.0,21.9924]
[1756370897807,4.1002,4607.1,4607.0,21.9924]
[1756370898409,2.6586,4607.1,4607.0,21.9924]
[1756370898815,3.2078,4607.5,4607.4,0.8943]
[1756370899112,8.2356,4607.5,4607.4,21.9914]
[1756370899414,9.56214,4607.5,4607.4,21.9914]
[1756370899611,9.56214,4607.5,4607.4,20.6913]
[1756370901111,9.66889462,4607.5,4607.4,20.6913]
[1756370902015,6.36379462,4607.5,4607.4,21.9914]
[1756370902219,8.73299462,4607.5,4607.4,21.9914]
[1756370902516,9.66889462,4607.5,4607.4,20.6913]
[1756370902816,9.66889462,4607.5,4607.4,0.8943]
[1756370903115,6.36379462,4607.5,4607.4,11.4324]
[1756370903506,7.88879462,4607.5,4607.4,11.4324]
[1756370903707,9.66889462,4607.5,4607.4,11.4324]
[1756370904115,6.36379462,4607.5,4607.4,11.4324]
[1756370904305,9.66889462,4607.5,4607.4,11.4324]
[1756370905416,9.66889462,4607.5,4607.4,10.1323]
[1756370905817,9.66889462,4607.5,4607.4,20.2593]
[1756370906210,9.66889462,4607.5,4607.2,0.1743]
[1756370906411,6.46109462,4607.4,4607.3,19.78]
[1756370907118,6.46109462,4607.4,4607.2,0.1743]
[1756370907312,6.46109462,4607.3,4607.2,0.1743]
[1756370907812,5.9637,4607.2,4606.6,1.3001]
[1756370908015,5.9637,4606.7,4606.6,0.8943]
[1756370908316,6.46109462,4606.7,4606.6,20.6733]
[1756370910918,6.46109462,4606.7,4606.6,0.8943]
[1756370911118,6.46109462,4606.7,4606.6,20.6703]
[1756370912718,4.09189462,4606.7,4606.6,21.9704]
[1756370913319,0.49739462,4606.7,4606.6,22.36112]
[1756370913514,0.49739462,4607.1,4606.6,22.36112]
[1756370913822,0.49739462,4607.0,4606.9,2.1944]
[1756370914019,2.6586,4607.2,4607.1,0.8943]
[1756370914219,3.15842042,4607.2,4607.1,2.1944]
[1756370914522,0.49982042,4607.2,4607.1,2.1944]
[1756370914709,0.49982042,4607.2,4607.1,2.58508]
[1756370914913,0.49982042,4607.2,4607.1,2.1944]
[1756370915108,0.49982042,4607.2,4607.1,21.9724]
[1756370916721,0.49982042,4607.2,4607.1,21.9714]
[1756370918313,0.49982042,4607.2,4607.1,2.1944]
[1756370918521,0.49982042,4607.2,4607.1,21.9684]
[1756370919129,3.05952042,4607.2,4607.1,21.9684]
[1756370920230,0.49982042,4607.2,4607.1,2.58508]
[1756370920413,0.49982042,4607.2,4607.1,22.35608]
[1756370920724,2.5597,4608.1,4608.0,1.6611]
[1756370920922,2.5597,4608.1,4608.0,21.4281]
[1756370922626,1.3133,4608.1,4608.0,21.4281]
[1756370923725,2.5597,4608.1,4608.0,21.4281]
[1756370925119,3.4238,4608.1,4608.0,21.4281]
[1756370925319,4.8836,4608.1,4608.0,21.4281]
[1756370926022,5.7604,4608.1,4607.1,0.7546]
[1756370926223,1.3133,4608.0,4607.2,9.30566]
[1756370926524,5.7604,4607.4,4607.3,0.9065]
[1756370926920,5.7604,4607.4,4607.3,1.29716]
[1756370927124,5.7604,4607.4,4607.3,2.05176]
[1756370927323,4.8836,4607.4,4607.3,2.05176]
[1756370928621,2.5597,4607.4,4607.3,2.05176]
[1756370929026,3.4238,4607.4,4607.3,2.05176]
[1756370929228,2.5597,4607.4,4607.3,2.05176]
[1756370931326,5.7604,4607.4,4607.3,13.30716]
[1756370932529,5.7604,4607.4,4607.3,14.06176]
[1756370933124,4.8836,4607.4,4607.3,14.06176]
[1756370933331,5.38197868,4607.4,4607.3,14.06176]
[1756370934332,5.38197868,4607.4,4607.3,13.30716]
[1756370934531,6.25877868,4607.4,4607.3,0.9065]
[1756370934831,6.25877868,4607.4,4607.3,21.05716]
[1756370935030,6.25877868,4607.4,4607.3,0.9065]
[1756370935331,6.25877868,4607.4,4607.3,12.7465]
[1756370936830,6.25877868,4607.4,4607.3,20.6665]
[1756370937926,2.3239,4607.1,4607.0,3.2078]
[1756370938131,6.25877868,4607.1,4607.0,22.9678]
[1756370938331,6.25877868,4607.1,4607.0,3.2078]
[1756370938533,6.25877868,4607.1,4607.0,4.1143]
[1756370940528,6.25877868,4607.1,4607.0,3.2078]
[1756370940734,6.25877868,4607.1,4607.0,19.2788]
[1756370940934,6.25877868,4607.1,4607.0,20.1853]
[1756370942334,6.25877868,4607.1,4607.0,4.1143]
[1756370942527,6.25877868,4607.1,4607.0,3.2078]
[1756370942722,3.4365,4607.0,4606.9,8.3529]
[1756370942932,6.25877868,4607.0,4606.9,8.3529]
[1756370943132,6.25877868,4607.0,4606.9,8.174]
[1756370943524,2.3239,4606.7,4606.6,16.66]
[1756370943727,6.25877868,4606.7,4606.6,16.66]
[1756370944122,6.25877868,4606.7,4606.6,17.5665]
[1756370944626,6.25877868,4606.7,4606.6,20.6675]
[1756370945135,6.25877868,4606.7,4606.6,21.05822]
[1756370949041,6.25877868,4606.7,4606.6,20.6675]
[1756370949231,2.82227868,4606.7,4606.6,0.8239]
[1756370949433,6.31547868,4606.7,4606.6,20.5859]
[1756370950128,6.31547868,4606.7,4606.6,20.97662]
[1756370952327,0.49837868,4606.7,4606.6,25.9046]
[1756370952629,3.5831,4607.5,4607.4,1.21455]
[1756370952830,6.26081068,4607.5,4607.4,20.97655]
[1756370953230,6.26081068,4607.5,4607.4,20.5859]
[1756370953435,6.26081068,4607.5,4607.4,20.97655]
[1756370954040,4.46101068,4607.5,4607.4,21.68745]
[1756370954237,0.49941068,4607.5,4607.4,21.68745]
[1756370954634,1.81431068,4607.5,4607.4,21.68745]
[1756370956743,0.49941068,4607.5,4607.4,21.68745]
[1756370958844,0.49941068,4607.5,4607.4,1.92545]
[1756370959038,0.49941068,4607.5,4607.4,15.28245]
[1756370961243,3.07891068,4607.5,4607.4,1.92545]
[1756370961443,6.26081068,4607.5,4607.4,14.84855]
[1756370962037,5.34711068,4607.5,4607.4,15.55945]
[1756370962449,2.5795,4607.5,4607.4,15.55945]
[1756370963048,2.5795,4607.5,4607.4,1.92545]
[1756370963248,2.5795,4607.5,4607.4,15.53945]
[1756370963550,3.07903077,4607.5,4607.4,15.53945]
[1756370964352,1.81443077,4607.5,4607.4,15.53945]
[1756370964546,0.49953077,4607.5,4607.4,15.53945]
[1756370964746,1.81443077,4607.5,4607.4,15.53945]
[1756370966448,3.07903077,4607.5,4607.4,15.53945]
[1756370967553,0.49953077,4607.5,4607.4,15.53945]
[1756370968954,1.81443077,4607.5,4607.4,15.53945]
[1756370970052,0.49953077,4607.5,4607.4,15.53945]
[1756370970454,0.49953077,4607.5,4607.4,21.68345]
[1756370971544,2.5795,4608.1,4608.0,0.94]
[1756370971752,2.5795,4608.1,4608.0,20.698]
[1756370972144,4.8477,4608.1,4608.0,20.4867]
[1756370972352,5.7614,4608.1,4608.0,20.4867]
[1756370972555,5.7614,4608.1,4608.0,0.3381]
[1756370972749,5.7614,4608.1,4608.0,9.8671]
[1756370973258,5.7614,4608.1,4608.0,10.2577]
[1756370974455,3.6781,4608.1,4608.0,10.2577]
[1756370974651,5.7614,4608.1,4608.0,10.2577]
[1756370975545,5.7614,4608.1,4608.0,9.8671]
[1756370975957,5.7614,4608.1,4608.0,0.3381]
[1756370976152,5.7614,4608.1,4608.0,10.8021]
[1756370977860,5.7614,4608.1,4608.0,0.3381]
[1756370978063,2.248,4608.1,4608.0,19.757]
[1756370978455,3.5165,4608.1,4608.0,20.4219]
[1756370978657,2.5226,4608.1,4608.0,20.5934]
[1756370978859,3.2078,4608.9,4608.7,0.66484]
[1756370978860,4.758,4608.8,4608.7,0.66484]
[1756370979058,3.3846,4608.8,4608.7,20.2018]
[1756370979252,1.2685,4608.8,4608.7,20.59234]
[1756370979659,2.2354,4609.5,4609.4,0.2743]
[1756370980169,5.6651,4609.5,4609.4,0.2743]
[1756370980467,3.3846,4609.5,4609.4,0.2743]
[1756370980664,5.6651,4609.5,4609.4,20.0303]
[1756370981867,2.2354,4609.1,4608.4,34.4748]
[1756370982066,1.3734,4608.9,4608.8,0.39053]
[1756370982367,1.3734,4608.9,4608.8,0.83633]
[1756370982368,1.2685,4608.9,4608.8,0.83633]
[1756370982770,2.5226,4608.9,4608.8,0.83633]
[1756370983468,3.01777094,4608.9,4608.8,0.83633]
[1756370983774,3.01777094,4608.9,4608.8,0.66483]
[1756370983972,6.16027094,4608.9,4608.8,0.66483]
[1756370984374,5.25317094,4608.9,4608.8,0.66483]
[1756370984873,6.16027094,4608.9,4608.8,0.2743]
[1756370985166,3.01777094,4608.9,4608.8,0.4458]
[1756370985367,3.01777094,4608.9,4608.8,20.0273]
[1756370986072,1.76367094,4608.9,4608.8,20.1988]
[1756370986273,0.49517094,4608.9,4608.8,20.1988]
[1756370987275,2.5226,4609.2,4608.8,19.9245]
[1756370987475,2.5226,4609.2,4609.1,0.2743]
[1756370987671,3.01740256,4609.2,4609.1,0.66481]
[1756370987869,0.9071,4609.1,4608.7,0.39053]
[1756370988177,2.5226,4608.8,4608.7,0.66483]
[1756370988376,1.2685,4608.8,4608.7,20.58833]
[1756370989071,6.15987082,4608.8,4608.7,20.41683]
[1756370989468,5.6651,4608.8,4608.7,20.41683]
[1756370990376,6.15981527,4608.8,4608.7,0.66483]
[1756370990675,6.15981527,4608.8,4608.7,19.751]
[1756370990676,1.97671527,4608.8,4608.7,19.751]
[1756370990973,3.63721527,4608.8,4608.7,19.751]
[1756370991174,4.90571527,4608.8,4608.7,19.751]
[1756370991369,6.15981527,4608.8,4608.7,19.751]
[1756370993175,6.15981527,4608.8,4608.7,20.14154]
[1756370993576,6.15981527,4608.8,4608.7,20.41584]
[1756370994072,6.15981527,4608.8,4608.7,0.66484]
[1756370994274,6.15981527,4608.8,4608.7,20.41584]
[1756370996369,3.87931527,4608.8,4608.7,20.41584]
[1756370996677,3.01731527,4608.8,4608.7,20.58734]
[1756370996973,3.01731527,4608.8,4608.7,20.41584]
[1756370997976,1.2685,4608.8,4608.7,20.58734]
[1756370998169,2.1161,4609.2,4609.1,0.66481]
[1756370998472,2.1161,4609.2,4609.1,20.58631]
[1756370998473,1.74895252,4609.2,4609.1,20.58631]
[1756370998675,3.01745252,4609.2,4609.1,20.58631]
[1756370998872,1.76335252,4609.2,4609.1,20.58631]
[1756371000177,3.01745252,4609.2,4609.1,20.58631]
[1756371000475,6.15995252,4609.2,4609.1,20.0243]
[1756371000870,2.73025252,4609.2,4609.1,20.41481]
[1756371001476,0.49485252,4609.2,4609.1,24.80327]
[1756371001676,1.2685,4609.6,4609.5,0.83627]
[1756371001977,1.2685,4609.9,4609.8,0.66475]
[1756371002177,1.76326848,4609.9,4609.8,20.58525]
[1756371002368,0.49476848,4609.9,4609.8,20.58525]
[1756371002570,0.49476848,4609.9,4609.8,0.83625]
[1756371002770,6.15986848,4609.9,4609.8,20.0233]
[1756371004682,2.73016848,4609.9,4609.8,19.749]
[1756371004883,5.6651,4609.2,4609.1,0.6648]
[1756371005079,5.6651,4609.2,4609.1,20.4138]
[1756371005571,2.5226,4609.6,4609.5,0.83627]
[1756371005775,3.01744259,4609.6,4609.5,20.41277]
[1756371005975,6.15994259,4609.6,4609.5,20.41277]
[1756371006377,6.15994259,4609.6,4609.5,0.2743]
[1756371006577,6.15994259,4609.6,4609.5,19.748]
[1756371007178,5.25284259,4609.6,4609.5,0.2743]
[1756371007377,2.2354,4609.1,4609.0,3.4821]
[1756371007582,2.2354,4609.1,4609.0,12.6321]
[1756371007583,6.15994259,4609.1,4609.0,12.6321]
[1756371007980,6.15994259,4609.1,4609.0,23.2291]
[1756371010287,6.15994259,4609.1,4609.0,23.61961]
[1756371011388,6.15994259,4609.1,4609.0,3.87261]
[1756371011589,6.15994259,4609.1,4609.0,23.61961]
[1756371015282,6.15994259,4609.1,4608.8,0.39053]
[1756371015488,5.6651,4609.1,4609.0,19.746]
[1756371015688,6.15930774,4609.1,4609.0,19.9483]
[1756371015890,6.15930774,4609.1,4609.0,0.2023]
[1756371016082,6.15930774,4609.1,4609.0,19.9483]
[1756371017192,6.15930774,4609.1,4609.0,20.33881]
[1756371019494,6.15930774,4609.1,4609.0,19.9483]
[1756371020988,6.15930774,4609.1,4608.8,0.1727]
[1756371021180,5.6651,4609.1,4609.0,19.746]
[1756371021384,6.15919648,4609.1,4609.0,19.746]
[1756371022893,6.15919648,4609.1,4609.0,19.9483]
[1756371023089,6.15919648,4609.1,4609.0,20.46531]
[1756371023090,3.01669648,4609.1,4609.0,20.46531]
[1756371023293,1.76259648,4609.1,4609.0,20.46531]
[1756371023686,1.76259648,4609.1,4609.0,20.0748]
[1756371023889,5.96519648,4609.1,4608.8,0.1727]
[1756371024087,3.86399648,4609.0,4608.9,19.746]
[1756371024288,5.91479648,4609.0,4608.9,19.746]
[1756371024489,5.91479648,4609.0,4608.9,19.9483]
[1756371025295,5.91479648,4609.0,4608.9,19.746]
[1756371025594,5.91479648,4609.0,4608.9,19.9483]
[1756371029398,5.91479648,4609.0,4608.9,19.746]
[1756371029602,5.91479648,4609.0,4608.8,0.1727]
[1756371029797,3.2078,4609.6,4608.8,0.1727]
[1756371029798,2.64589648,4608.9,4608.8,0.1727]
[1756371029997,5.91479648,4608.9,4608.8,19.9177]
[1756371030195,5.91479648,4608.9,4608.8,19.745]
[1756371030390,3.2689,4608.8,4608.0,3.2078]
[1756371030701,5.4207,4608.5,4608.0,3.2078]
[1756371031001,5.91479648,4608.5,4608.4,51.012]
[1756371032191,5.91479648,4608.5,4608.4,31.267]
[1756371032394,5.91479648,4608.5,4608.4,51.013]
[1756371032594,5.91479648,4608.5,4608.4,31.267]
[1756371032794,5.91479648,4608.5,4608.4,51.013]
[1756371032993,5.91479648,4608.5,4608.4,31.267]
[1756371033195,5.91479648,4608.5,4608.4,51.012]
[1756371034001,5.91444453,4608.5,4608.4,51.012]
[1756371036502,5.91444453,4608.5,4608.4,31.267]
[1756371036698,5.91444453,4608.5,4608.4,51.013]
[1756371037698,9.12224453,4608.5,4608.4,51.013]
[1756371037897,9.12224453,4608.5,4608.4,19.746]